Cogmind - Beta 15 @@@ ROGUE MODE // 2025.10.21 @ 16:46:24 Player: Sangros Result: Destroyed by G-47 Trooper with Particle Gun Performance ------------- Evolutions (2) 1000 Regions Visited (5) 1000 Robots Destroyed (23) 115 Value Destroyed (696) 696 Prototype IDs (0) 0 Alien Tech Used (0) 0 Bonus (310) 310 TOTAL SCORE: 3121 Bonus ------- Pacifist 200 Follower Combat Kills 110 Cogmind --------- Core Integrity 0/550 Matter 282/300 Energy 91/100 System Corruption 2% Temperature Cool (9) Movement Core (1400) Ox27 Location -8/Materials Parts ------- > --- POWER (1) -------- (None) > --- PROPULSION (4) --- (None) > --- UTILITY (2) ------ Huge Storage Unit > --- WEAPON (4) ------- Small Laser Assault Rifle > --- INVENTORY (25) --- Aluminum Leg Airjet Improved Heat Sink Large Storage Unit Huge Storage Unit High-capacity Matter Pod (150) Structural Scanner Advanced Visual Processing Unit Advanced Visual Processing Unit Improved Targeting Computer Melee Analysis Suite Reactive Plating Shield Generator Particle Gun Peak State ------------ > --- POWER ------------ Ion Engine > --- PROPULSION ------- Light Treads Flight Unit Flight Unit > --- UTILITY ---------- Huge Storage Unit Medium Armor Plating > --- WEAPON ----------- Salvaging Laser Particle Gun Spread Laser Shock Bomb Launcher > --- INVENTORY -------- Light Ion Engine Improved Ion Engine Aluminum Leg Heat Sink Large Storage Unit Huge Storage Unit Trap Scanner Advanced Visual Processing Unit Advanced Visual Processing Unit Improved Targeting Computer Light Armor Plating Reactive Plating Shield Generator Medium Laser Small Laser Beam Rifle Light Assault Rifle Light Assault Rifle Light Assault Rifle Mining Laser [Rating: 18] Favorites ----------- Power Ion Engine Engine Ion Engine Propulsion Flight Unit Treads Light Treads Leg Aluminum Leg Wheel Wheel Hover Unit Hover Unit Flight Unit Flight Unit Utility Huge Storage Unit Device Heat Sink Storage Huge Storage Unit Protection Medium Armor Plating Weapon Medium Laser Energy Gun Medium Laser Ballistic Gun Light Assault Rifle Launcher Shock Bomb Launcher Special Weapon Mining Laser Build | -11 -10 -10 -9 -9 -8 ------- Run | Yrd Mat Min Mat Min Mat Slots Evolved 4 | . . . 2 . 2 Power . | . . . . . . Propulsion 2 | . . . 2 . . Utility . | . . . . . . Weapon 2 | . . . . . 2 Parts Attached 39 | 6 8 . 3 8 14 Power 3 | 1 2 . . . . Engine 3 | 1 2 . . . . Core . | . . . . . . Reactor . | . . . . . . Propulsion 13 | 2 4 . 1 2 4 Treads 3 | . 2 . . 1 . Leg 3 | 2 . . . . 1 Wheel 2 | . . . . . 2 Hover 1 | . . . . . 1 Flight 4 | . 2 . 1 1 . Utility 8 | 1 1 . 1 3 2 Device 2 | . 1 . . 1 . Storage 3 | 1 . . 1 . 1 Processor . | . . . . . . Hackware . | . . . . . . Protection 3 | . . . . 2 1 Artifact . | . . . . . . Weapon 15 | 2 1 . 1 3 8 Energy Gun 10 | 2 1 . 1 1 5 Energy Cannon . | . . . . . . Ballistic Gun 3 | . . . . 2 1 Ballistic Cannon . | . . . . . . Launcher 1 | . . . . . 1 Special Weapon 1 | . . . . . 1 Impact Weapon . | . . . . . . Slashing Weapon . | . . . . . . Piercing Weapon . | . . . . . . Special Melee Weapon . | . . . . . . Unidentified Prototypes . | . . . . . . Parts Lost 25 | . . . . 2 23 Power 2 | . . . . . 2 Propulsion 10 | . . . . 1 9 Utility 4 | . . . . 1 3 Weapon 9 | . . . . . 9 Highest Loss Streak 8 | . . . . 1 8 To Critical Strikes . | . . . . . . Average Backups 14 | 5 5 8 7 13 16 Power . | 1 1 1 1 1 . Propulsion 2 | 3 1 2 1 1 2 Utility 7 | . . 1 1 3 9 Weapon 4 | 1 2 4 4 7 3 Tool/Special . | . . . . . . Unused Backups 24 | 2 2 . . . 20 Power 1 | . . . . . 1 Propulsion 5 | 2 . . . . 3 Utility 13 | . . . . . 13 Weapon 5 | . 2 . . . 3 Tool/Special . | . . . . . . Average Slot Usage (%) 75 | . 81 100 87 95 66 Engine 7 | . 11 14 11 11 4 Treads 3 | . 1 . . 8 1 Leg 3 | . 10 . . . 4 Hover 1 | . . . . . 2 Flight 13 | . 7 28 32 31 5 Device 5 | . 7 14 11 6 4 Storage 9 | . 14 14 11 11 9 Protection 2 | . . . . 4 2 Energy Gun 20 | . 27 28 22 13 22 Ballistic Gun 5 | . . . . 8 5 Launcher 1 | . . . . . 1 Peak Build Rating 18 | 6 7 7 9 14 18 Average Rating 10 | 3 5 7 8 12 10 On Entrance 6 | . 6 7 7 9 12 Naked Turns . | . . . . . . Heaviest Build 105 | 11 14 14 31 38 105 Greatest Support 40 | 20 40 8 12 12 20 Greatest Overweight (x) 27 | . 2 1 3 4 27 Average Overweight (x) 4 | . . 1 2 2 9 Largest Inventory Capacity 25 | 8 8 8 15 15 25 Average Capacity 20 | 7 8 8 15 15 24 Most Carried 24 | 8 8 8 8 15 24 Average Carried 14 | 6 5 8 7 13 16 Final Capacity 25 | 8 8 8 15 15 25 Final Carried 14 | 4 8 8 8 12 14 Class Distribution -------------------- 38% | Gunner 26% | Scavenger-Mutant 18% | Scavenger-Tank 13% | Mutant Dominant Class ---------------- Mutant | -10/Materials Mutant | -10/Mines Scavenger-Mutant | -9/Materials Scavenger-Mutant | -9/Mines Gunner | -8/Materials Resources | -11 -10 -10 -9 -9 -8 ----------- Run | Yrd Mat Min Mat Min Mat Matter Collected 941 | 250 110 . 30 103 448 Remotely . | . . . . . . Salvage Created 817 | . . . . 33 784 Parts 45 | . . . . 4 41 Haulers Intercepted . | . . . . . . Recyclers Shooed 1 | . . . . . 1 Parts Field Recycled . | . . . . . . Retrieved Matter . | . . . . . . Parts Self-Destructed . | . . . . . . Prevented . | . . . . . . Kills | -11 -10 -10 -9 -9 -8 ------- Run | Yrd Mat Min Mat Min Mat Combat Hostiles Destroyed 17 | . . . . 2 15 Guns 13 | . . . . 2 11 AOE 3 | . . . . . 3 Classes Destroyed 7 | . . . . 1 6 Worker 3 | . . . . . 3 Builder 2 | . . . . . 2 Watcher 1 | . . . . . 1 Swarmer 5 | . . . . 2 3 Grunt 9 | . . . . . 9 Sentry 1 | . . . . . 1 Hunter 2 | . . . . . 2 Best Kill Streak 4 | . . . . 2 4 Combat Bots Only 3 | . . . . 2 3 Max Kills in Single Turn 3 | . . . . 1 3 Gunslinging . | . . . . . . Exploded 1 | . . . . . 1 Melee . | . . . . . . Uniques/NPCs Destroyed . | . . . . . . Combat | -11 -10 -10 -9 -9 -8 -------- Run | Yrd Mat Min Mat Min Mat Hostile Shots Fired 245 | . 5 . . 57 183 Missed 77 | . 3 . . 18 56 Hits 168 | . 2 . . 39 127 Projectile 168 | . 2 . . 39 127 Critical Strikes 2 | . . . . 1 1 Damage Taken 2492 | . 21 . . 345 2126 Core 617 | . 11 . . 46 560 Absorbed by Shields . | . . . . . . Regen/Repaired (Parts) 2 | . . . . . 2 Core Remaining (%) 94 | 100 . 95 . 88 . Volleys Fired 67 | . 4 . . 7 56 Largest 4 | . 2 . . 2 4 Hottest 196 | . 90 . . 76 196 Shots Fired 170 | . 8 . . 14 148 Gun 156 | . 8 . . 14 134 Cannon . | . . . . . . Launcher 14 | . . . . . 14 Special . | . . . . . . Kinetic 42 | . . . . 7 35 Thermal 108 | . 8 . . 1 99 Explosive . | . . . . . . Electromagnetic 20 | . . . . 6 14 Robot Hit Streak 10 | . 3 . . 4 10 Robot Miss Streak 4 | . 1 . . 3 4 Penetration Max . | . . . . . . Secondary Targets 3 | . . . . 1 2 Max Gunslinging Chain 1 | . . . . 1 1 Shots Hit Robots 104 | . 5 . . 7 92 Core Hits 54 | . 1 . . 3 50 Critical Kills . | . . . . . . Critical Parts Destroyed . | . . . . . . Critical Strikes 2 | . . . . . 2 Burn 2 | . . . . . 2 Melee Attacks . | . . . . . . Impact . | . . . . . . Slashing . | . . . . . . Piercing . | . . . . . . Sneak Attacks . | . . . . . . Combat Hostiles . | . . . . . . Follow-up Attacks . | . . . . . . Damage Inflicted 1817 | . 80 . . 85 1652 Guns 1225 | . 80 . . 85 1060 Cannons . | . . . . . . Explosions 592 | . . . . . 592 Melee . | . . . . . . Ramming . | . . . . . . Kinetic 287 | . . . . 32 255 Thermal 952 | . 80 . . . 872 Explosive . | . . . . . . Electromagnetic 578 | . . . . 53 525 Impact . | . . . . . . Slashing . | . . . . . . Piercing . | . . . . . . Highest Corruption 2 | . . . . . 2 Average Corruption 1 | . . . . . 1 Corruption Purged . | . . . . . . Corruption Blocked . | . . . . . . Effects 21 | . . . . . 21 Message Errors 6 | . . . . . 6 Matter Fused 5 | . . . . . 5 Heat Flow Errors 2 | . . . . . 2 Energy Discharges 1 | . . . . . 1 Parts Rejected 1 | . . . . . 1 Data Loss (minor) 4 | . . . . . 4 Misfires 1 | . . . . . 1 Weapon Failures 1 | . . . . . 1 Overload Shots . | . . . . . . Overflow Damage 28 | . . . . . 28 Projectiles . | . . . . . . Explosions 28 | . . . . . 28 Melee . | . . . . . . Knockbacks . | . . . . . . Impact . | . . . . . . Kinetic . | . . . . . . Secondary . | . . . . . . Self-Inflicted Damage 212 | . . . . . 212 Shots 10 | . . . . . 10 Rammed . | . . . . . . Targets Rammed . | . . . . . . Kicked . | . . . . . . Crushed . | . . . . . . Highest Temperature 396 | . 102 . . 42 396 Average Temperature 131 | . 43 . . 14 151 Received Heat Transfer 732 | . 12 . . 9 711 Effects 2 | . . . . . 2 Energy Bleed 1 | . . . . . 1 Interference 1 | . . . . . 1 Siege Activations . | . . . . . . Martial Activations . | . . . . . . Shielding Activations . | . . . . . . Robots Disrupted . | . . . . . . Combat Hostiles . | . . . . . . Robots Corrupted 1 | . . . . . 1 Combat Hostiles . | . . . . . . Parts Fried 4 | . . . . . 4 Impact Corruptions . | . . . . . . Robots Melted 1 | . . . . . 1 Combat Hostiles 1 | . . . . . 1 Parts Melted 4 | . . . . . 4 Heat Transferred 2395 | . 223 . . . 2172 Parts Sabotaged . | . . . . . . Parts Stolen . | . . . . . . Parts Stripped . | . . . . . . Power Chain Reactions 4 | . . . . . 4 Alert | -11 -10 -10 -9 -9 -8 ------- Run | Yrd Mat Min Mat Min Mat Maximum Alert Level . | . . . . . . Low Security (%) 100 | 100 100 100 100 100 100 Level 1 . | . . . . . . Level 2 . | . . . . . . Level 3 . | . . . . . . Level 4 . | . . . . . . Level 5 . | . . . . . . High Security . | . . . . . . Max Security . | . . . . . . Peak Influence 83 | . . . 46 54 83 Initial 18 | . . . . 13 18 Average 9 | . . . 14 9 10 Influence Increases 702 | . . . 56 183 463 Destroy 0b10 Robot/C 420 | . . . 40 80 300 Destroy 0b10 Robot/NC 30 | . . . . . 30 Destroy Leader 92 | . . . 10 10 72 Allied During Kill 9 | . . . 6 3 . Successful Hack 6 | . . . . . 6 Disable Machine 45 | . . . . . 45 Destroy Structure 10 | . . . . . 10 Lose Combat Pursuer 90 | . . . . 90 . Influence Decreases 702 | . . . 20 171 511 Entered New Map 53 | . . . . 23 30 Time Decay 444 | . . . 20 108 316 Lost Part 185 | . . . . 20 165 Lost Ally 20 | . . . . 20 . Squads Dispatched 9 | . 4 . . . 5 Investigation 4 | . 1 . . . 3 Extermination . | . . . . . . Reinforcement 4 | . 3 . . . 1 Assault . | . . . . . . Garrison 1 | . . . . . 1 Intercept . | . . . . . . Searches Triggered . | . . . . . . Construction Impeded 1 | . . . . . 1 Haulers Reinforced . | . . . . . . Active Scanning Responses . | . . . . . . Cargo Convoy Interrupts . | . . . . . . Stealth | -11 -10 -10 -9 -9 -8 --------- Run | Yrd Mat Min Mat Min Mat Distress Signals 2 | . 2 . . . . Communications Jammed . | . . . . . . Distress Signals . | . . . . . . Times Spotted 37 | . 4 . . 10 23 Peak Tracking Total 4 | . 2 . . 3 4 Tactical Retreats 4 | . . . . 4 . Traps | -11 -10 -10 -9 -9 -8 ------- Run | Yrd Mat Min Mat Min Mat Traps Triggered 4 | . 2 . . . 2 Indirectly 2 | . . . . . 2 Trap Hack Attempts . | . . . . . . Triggered . | . . . . . . Disarmed . | . . . . . . Reprogrammed . | . . . . . . Reused . | . . . . . . Traps Extracted . | . . . . . . Installed . | . . . . . . Triggered . | . . . . . . Machines | -11 -10 -10 -9 -9 -8 ---------- Run | Yrd Mat Min Mat Min Mat Machines Disabled 3 | . . . . . 3 Max in Single Turn 1 | . . . . . 1 Machines Repaired . | . . . . . . Machines Dismantled . | . . . . . . Machines Sabotaged . | . . . . . . Overloaded Fab Kills . | . . . . . . Hacking | -11 -10 -10 -9 -9 -8 --------- Run | Yrd Mat Min Mat Min Mat Machines Accessed 3 | . . . . . 3 Terminals 2 | . . . . . 2 Fabricators . | . . . . . . Repair Stations 1 | . . . . . 1 Recycling Units . | . . . . . . Scanalyzers . | . . . . . . Garrison Access . | . . . . . . Total Hacks 11 | . . . . . 11 Successful 8 | . . . . . 8 Failed 3 | . . . . . 3 Catastrophic . | . . . . . . Database Lockouts . | . . . . . . Manual . | . . . . . . Terminals 4 | . . . . . 4 Fabricators . | . . . . . . Repair Stations 7 | . . . . . 7 Recycling Units . | . . . . . . Scanalyzers . | . . . . . . Garrison Access . | . . . . . . Terminal Hacks 1 | . . . . . 1 Hauler Manifests 1 | . . . . . 1 Fabricator Hacks . | . . . . . . Repair Station Hacks 7 | . . . . . 7 Scan Component 4 | . . . . . 4 Repair 3 | . . . . . 3 Recycling Unit Hacks . | . . . . . . Scanalyzer . | . . . . . . Garrison Access Hacks . | . . . . . . Unauthorized Hacks . | . . . . . . Terminals . | . . . . . . Fabricators . | . . . . . . Repair Stations . | . . . . . . Recycling Units . | . . . . . . Scanalyzers . | . . . . . . Garrison Access . | . . . . . . Data Cores Recovered . | . . . . . . Used . | . . . . . . Hacking Detections 2 | . . . . . 2 Full Trace Events 2 | . . . . . 2 Feedback Events . | . . . . . . Feedback Blocked . | . . . . . . Robot Schematics Acquired . | . . . . . . Robots Built . | . . . . . . Authchips . | . . . . . . Time . | . . . . . . Total Robot Build Rating . | . . . . . . Part Schematics Acquired . | . . . . . . Parts Built . | . . . . . . Authchips . | . . . . . . Time . | . . . . . . Total Part Build Rating . | . . . . . . Parts Repaired 3 | . . . . . 3 Time 98 | . . . . . 98 Parts Recycled . | . . . . . . Recycled Matter . | . . . . . . Retrieved Matter . | . . . . . . Retrieved Components . | . . . . . . Parts Scanalyzed . | . . . . . . Part Schematics Acquired . | . . . . . . Parts Damaged . | . . . . . . Bothacking | -11 -10 -10 -9 -9 -8 ------------ Run | Yrd Mat Min Mat Min Mat Used RIF Installer . | . . . . . . Robots Hacked . | . . . . . . Non-combat . | . . . . . . Combat . | . . . . . . Robot Hacks Applied . | . . . . . . Relay Couplers Released . | . . . . . . Fabnet Peak Effective % . | . . . . . . Robots Rewired . | . . . . . . Allies Hacked . | . . . . . . Hacks Repelled . | . . . . . . Allies | -11 -10 -10 -9 -9 -8 -------- Run | Yrd Mat Min Mat Min Mat Total Allies 2 | . . 2 . . . Largest Group 2 | . . 2 2 2 . Highest-Rated Group 52 | . . 52 52 52 . Highest-Rated Ally 31 | . . 31 31 31 . Total Orders . | . . . . . . Ally Attacks 15 | . . . 2 13 . Total Damage 234 | . . . 43 191 . Kills 4 | . . . 2 2 . Allies Corrupted . | . . . . . . Allies Melted . | . . . . . . Intel | -11 -10 -10 -9 -9 -8 ------- Run | Yrd Mat Min Mat Min Mat Active Infowar (turns) . | . . . . . . Robot Analysis Total . | . . . . . . Derelict Logs Recovered 1 | . . . . 1 . Drone Launches . | . . . . . . Drone Recoveries . | . . . . . . Exploration | -11 -10 -10 -9 -9 -8 ------------- Run | Yrd Mat Min Mat Min Mat Turns Passed 3558 | 63 175 110 108 820 2282 Spaces Moved 882 | 45 98 91 50 284 314 Core 39 | 10 12 . . . 17 Treads 2 | . 2 . . . . Legs 202 | 35 41 . . . 126 Wheels 48 | . . . . . 48 Hover 61 | . . . . . 61 Flight 530 | . 43 91 50 284 62 Fastest Speed 50 | 50 117 117 194 194 140 Average Speed 352 | 104 136 117 195 235 654 Slowest Speed 1800 | 120 190 117 277 377 1800 Overloaded Moves . | . . . . . . Propulsion Burnouts . | . . . . . . Robots Hopped . | . . . . . . Potential Cave-ins . | . . . . . . Cave-ins Triggered . | . . . . . . Exploration Rate (%) 17 | 3 20 26 5 35 13 Regions Visited 5 Branch Regions 2 Pre-discovered Areas . | . . . . . . Known Exits Taken . | . . . . . . Unknown Exits Taken 5 | 1 1 1 1 1 . Scrap Searched . | . . . . . . Spaces Dug . | . . . . . . Terrain Destroyed 10 | . . . . . 10 Melee . | . . . . . . Projectile . | . . . . . . AOE 10 | . . . . . 10 Terrain Rammed . | . . . . . . Walls Destroyed . | . . . . . . Machines Disabled . | . . . . . . Actions | -11 -10 -10 -9 -9 -8 --------- Run | Yrd Mat Min Mat Min Mat Total 1207 | 60 132 94 60 420 441 Wait 121 | . 3 4 7 107 . Move 877 | 44 97 90 49 283 314 Hop . | . . . . . . Pick Up 67 | 8 14 . 1 10 34 Fast Attach 5 | 4 . . . 1 . Attach 36 | 2 8 . 1 4 21 Detach 4 | . 1 . . . 3 Swap 10 | . 2 . 2 4 2 Drop 20 | 2 3 . . 4 11 Fire 67 | . 4 . . 7 56 Melee . | . . . . . . Ram . | . . . . . . Kick . | . . . . . . Crush . | . . . . . . Escape Stasis . | . . . . . . Rewire . | . . . . . . Trap . | . . . . . . Miscellaneous . | . . . . . . Route ------- -11/Scrapyard -10/Materials -10/Mines -9/Materials -9/Mines -8/Materials History --------- Turn | Location | Event 28 | -11/Scrapyard | Discovered new exit (range 15) 64 | -11/Scrapyard | Entered Materials 65 | -10/Materials | Met a group of wandering Federalists 197 | -10/Materials | Discovered new exit (range 13) 239 | -10/Materials | Entered Mines 312 | -10/Mines | Build established: Mutant 338 | -10/Mines | Discovered new exit (range 5) 349 | -10/Mines | Entered Materials 349 | -9/Materials | Accompanied by 2 allies 349 | -9/Materials | Evolved 2 slots: Propulsion x2 354 | -9/Materials | Led the pair of lost Derelicts to an unsafe place 410 | -9/Materials | Discovered new exit (range 13) 457 | -9/Materials | Entered Mines 457 | -9/Mines | Accompanied by 2 allies 553 | -9/Mines | Joined a pair of Derelicts in attacking an 0b10 outpost 650 | -9/Mines | Build established: Scavenger-Mutant 921 | -9/Mines | Received a Rocket Launcher from a helpful Derelict 1257 | -9/Mines | Discovered new exit (range 8) 1277 | -9/Mines | Entered Materials 1277 | -8/Materials | Evolved 2 slots: Weapon x2 1584 | -8/Materials | Build established: Scavenger-Tank 1749 | -8/Materials | Lost 5 parts (2n1u2w) 1837 | -8/Materials | Core integrity fell below 50% 1880 | -8/Materials | Lost 5 parts (1p1n3w) 2139 | -8/Materials | Build established: Gunner 2849 | -8/Materials | Repaired Lgt. Armor Plating 2849 | -8/Materials | Repaired Corrupted Aluminum Leg 2885 | -8/Materials | Repaired Corrupted Wheel 2990 | -8/Materials | Core integrity fell below 20% 3031 | -8/Materials | Lost 8 parts (1p3n1u3w) 3537 | -8/Materials | Garrison activated, responded to threat 3559 | -8/Materials | Destroyed by G-47 Trooper with Particle Gun Last Messages --------------- A-02 Transporter 1x Hpw. Shotgun 5x Visual Processing Unit A-02 Transporter 1x Carbon-fiber Leg 4x Mni. Grenade Launcher ALERT: Suspicious activity at Terminal M003. Dispatching Investigation squad. G-47 Trooper calls for garrison reinforcements. ALERT: Activating Garrison Access M001. [Achievement: Troublemaker] Lgt. Armor Plating destroyed. Lgt. Assault Rifle destroyed. Critical hit (Burn: +37). G-47 Trooper destroyed. K-01 Serf collects debris. Aluminum Leg destroyed. K-01 Serf collects debris. Aluminum Leg destroyed. K-01 Serf collects debris. Map ----- +----------------------------------------------------+ | ?????????????????????????????????????????????????? | | ?????????????????????????????????????????????????? | | ?????????????????????????????????????????????????? | | ?????????????????????????????????????????????????? | | ?????????????????????????????????????????????????? | | ?????????????????????????????????????????????????? | | ?????????????????????????????????????????????????? | | ?????????????????????????????????????????????????? | | ?????????????????????????????????????????????????? | | ?????????????????????????????????????????????????? | | ########?????????????????????????????????????????? | | #?????????????????????????????????????????? | | #?????????????????????????????????????????? | | """ #?????????????????????????????????????????? | | """ #?????????????????????????????????????????? | | """ #?????????????????????????????????????????? | | """ #?????????????????????????????????????????? | | """ #??????##############?????????????????????? | | ######## #?????????????????????? | | ##+##### ## """ #?????????????????????? | | # ## "T" """ #?????????????????????? | | # ## """ #?????????????????????? | | # ## """ #?????????????????????? | | ##+##### ## #?????????????????????? | | ## %############+##########??????????????? | | ## % % @ gk #????????? | | % ## k k *% #????????? | | ## Y ! #????????? | | ## ##############+######?????????? | | ## k #?????????????????????????????? | | ######### #?????????????????????????????? | | ?# # #?????????????????????????????? | | ?# """ # ##????????????????????????????? | | ?# "R # #????????????????????????????? | | ?# """ + #????????????????????????????? | | ?# # #????????????????????????????? | | ?# # ##????????????????????????????? | | ?######## %#?????????????????????????????? | | ????# #?????????????????????????????? | | ????# #?????????????????????????????? | | ????# #?????????????????????????????? | | ????######+##### #?????????????????????????????? | | ????# ## #?????????????????????????????? | | ????# ## #?????????????????????????????? | | ????# % ## #?????????????????????????????? | | ????# """ ## #?????????????????????????????? | | ????# " """ ## #?????????????????????????????? | | ????# """"" ## #?????????????????????????????? | | ????# ## #?????????????????????????????? | | ????# #? #?????????????????????????????? | +----------------------------------------------------+ Best States ------------- Heat Dissipation 41 Energy Generation 10 Energy Capacity 250 Matter Stores 300 Matter Capacity 300 Sight Range 16 Terrain Scan Density 10 Armor Coverage 225 Evasion (%) 55 Recoil Reduction 2 Item Schematics ----------------- None Robot Schematics ------------------ None Fabricated ------------ Nothing Repaired ---------- Wheel | 95% | -8/Materials | Corrupted Alien Tech Used ----------------- None Achievements -------------- It's Just You Part-time Mechanic Power Corrupts Shopping List Troublemaker Challenges ------------ None Game ------ Seed ChromionGodBlasthammer Manual? 0 Play Time 00:41:37 Cumulative 2.9 hours Start 2025.10.21 @ 16:03:15 End 2025.10.21 @ 16:46:24 Sessions 1 Manual Loads 0 Difficulty Rogue Special Mode None Game No. 7 Rogue 7 Adventurer 0 Explorer 0 Win Type - Total 0 Types 0/0/0/0/0/0/0/0/0/0 Lore% 0 Gallery% 4 Achievement% 5 Wizard Run 0 Options --------- Layout 1 ASCII 0 Keyboard 0 Movement Mouse Keybinds 0 Fullscreen 1 Font 24/Smallcaps Map View 50x35 Zoom Use 0% Tactical HUD 0 Map Filters NONE Filters NONE Steam 1 RUN: 6aec3656-47af-4067-baba-c5bd90c18921